bitfinex/quotes_SOLUSD_20240621
["timestamp","ask_amount","ask_price","bid_price","bid_amount"]
[1718929608708,6.4425,133.64,133.54,0.17]
[1718929608899,6.4425,133.64,133.53,0.17]
[1718929609100,6.4425,133.64,133.53,0.51]
[1718929613614,6.4425,133.64,133.53,29.0108]
[1718929613815,6.4425,133.64,133.54,20.0]
[1718929614010,6.4425,133.64,133.55,0.51]
[1718929614201,6.4425,133.64,133.55,23.02]
[1718929614397,6.4425,133.64,133.57,11.253557]
[1718929614628,6.4425,133.64,133.58,20.51]
[1718929615617,6.4425,133.64,133.58,0.51]
[1718929617902,6.4425,133.64,133.58,11.763557]
[1718929618106,6.4425,133.64,133.59,20.0]
[1718929618427,6.4425,133.64,133.6,0.51]
[1718929623130,6.4425,133.64,133.58,20.0]
[1718929623310,6.4425,133.64,133.5,10.38786025]
[1718929623311,6.4425,133.64,133.55,20.0]
[1718929623614,28.29,133.63,133.53,15.2797]
[1718929623814,28.29,133.63,133.54,20.0]
[1718929624319,28.29,133.6,133.54,20.0]
[1718929624524,6.4425,133.59,133.51,20.0]
[1718929624711,6.4425,133.59,133.48,8.98564523]
[1718929624712,6.4425,133.59,133.49,40.0]
[1718929625355,19.95234479,133.59,133.49,40.0]
[1718929625513,6.4425,133.59,133.5,0.51]
[1718929625710,6.4425,133.56,133.49,20.0]
[1718929626016,6.4425,133.56,133.46,20.0]
[1718929626222,6.4425,133.56,133.44,42.51]
[1718929626430,19.95234479,133.56,133.44,65.02]
[1718929626639,6.4425,133.56,133.44,65.02]
[1718929626816,6.4425,133.56,133.44,71.0148]
[1718929627014,6.4425,133.56,133.45,22.51]
[1718929627225,6.4425,133.56,133.46,28.5039]
[1718929627515,6.4425,133.56,133.47,0.51]
[1718929628613,6.4425,133.56,133.47,20.51]
[1718929629640,6.4425,133.56,133.47,20.0]
[1718929629825,15.2797,133.55,133.45,20.0]
[1718929630550,15.2797,133.55,133.45,25.9946]
[1718929630727,15.2797,133.55,133.46,22.51]
[1718929631037,15.2797,133.55,133.47,20.17]
[1718929631340,15.2797,133.55,133.48,0.34]
[1718929631542,15.2797,133.55,133.49,0.17]
[1718929632844,6.4425,133.56,133.49,48.6725]
[1718929633050,6.4425,133.56,133.5,28.8424]
[1718929633252,6.4425,133.59,133.51,42.68]
[1718929633422,6.4425,133.59,133.52,48.8413]
[1718929633625,6.4425,133.59,133.53,0.34]
[1718929633938,6.4425,133.59,133.54,0.17]
[1718929635038,15.2797,133.64,133.54,0.17]
[1718929635349,15.2797,133.64,133.57,22.51]
[1718929635513,15.2797,133.64,133.58,20.51]
[1718929636130,15.2797,133.64,133.58,15.7897]
[1718929636338,15.2797,133.64,133.59,20.0]
[1718929636540,6.4425,133.65,133.6,0.51]
[1718929636727,6.4425,133.69,133.61,22.51]
[1718929636929,6.4425,133.69,133.62,49.0069]
[1718929637145,6.4425,133.69,133.63,0.17]
[1718929639131,21.7222,133.72,133.63,0.17]
[1718929639344,6.4425,133.72,133.63,22.68]
[1718929639648,6.4425,133.72,133.64,20.34]
[1718929639865,6.4425,133.72,133.65,20.34]
[1718929640149,6.4425,133.72,133.66,0.34]
[1718929640351,6.4425,133.72,133.67,0.17]
[1718929642044,6.4425,133.72,133.62,20.0]
[1718929642225,15.4497,133.71,133.59,20.0]
[1718929643545,15.4497,133.71,133.6,0.17]
[1718929643546,15.2797,133.71,133.6,0.17]
[1718929643729,15.2797,133.71,133.6,0.51]
[1718929644237,6.4425,133.72,133.62,28.497]
[1718929644435,6.4425,133.72,133.63,49.0066]
[1718929644643,6.4425,133.72,133.64,0.17]
[1718929646821,6.4425,133.72,133.64,26.1561]
[1718929647024,6.4425,133.72,133.65,0.34]
[1718929647223,6.4425,133.72,133.66,0.17]
[1718929647649,15.2797,133.75,133.66,42.68]
[1718929647824,6.4425,133.76,133.67,20.17]
[1718929648022,6.4425,133.76,133.68,28.8344]
[1718929648551,6.4425,133.76,133.69,42.68]
[1718929648727,6.4425,133.76,133.7,0.34]
[1718929648925,6.4425,133.76,133.71,0.17]
[1718929649533,21.7222,133.8,133.71,0.17]
[1718929649731,21.7222,133.8,133.71,20.17]
[1718929649931,21.7222,133.8,133.72,0.34]
[1718929650133,21.7222,133.8,133.73,0.17]
[1718929650352,16.1506183,133.84,133.73,0.17]
[1718929650560,6.4425,133.83,133.74,22.51]
[1718929650729,6.4425,133.83,133.76,5.9806]
[1718929650931,6.4425,133.83,133.77,20.34]
[1718929651228,6.4425,133.83,133.78,0.17]
[1718929651445,6.4425,133.83,133.78,0.34]
[1718929651645,0.8709183,133.84,133.78,0.51]
[1718929653746,0.8709183,133.84,133.78,28.9999]
[1718929654048,0.8709183,133.84,133.78,48.9999]
[1718929654250,0.8709183,133.84,133.8,22.51]
[1718929654546,0.8709183,133.84,133.82,5.978]
[1718929654738,0.8709183,133.84,133.83,20.0]
[1718929655051,0.8709183,133.84,133.83,28.4877]
[1718929655247,0.8709183,133.84,133.83,48.4877]
[1718929655450,0.6246599,133.91,133.85,6.069]
[1718929655643,0.6246599,133.91,133.86,20.0]
[1718929656342,0.6246599,133.91,133.84,16.2425]
[1718929656343,0.6246599,133.91,133.87,0.51]
[1718929656541,0.6246599,133.91,133.88,11.22847527]
[1718929656756,0.6246599,133.91,133.89,9.1503024]
[1718929657060,0.6246599,133.91,133.9,29.3203024]
[1718929657256,0.6246599,133.91,133.9,29.4903024]
[1718929657961,0.6246599,133.91,133.9,40.71877767]
[1718929658149,0.6246599,133.91,133.9,29.4903024]
[1718929659463,0.6246599,133.91,133.9,28.9803024]
[1718929659669,0.6246599,133.91,133.9,20.0]
[1718929659960,0.6246599,133.91,133.9,28.98066355]
[1718929660848,0.6246599,133.91,133.9,29.15066355]
[1718929661049,0.6246599,133.91,133.9,20.17]
[1718929661241,0.6246599,133.91,133.9,20.0]
[1718929661547,0.6246599,133.91,133.9,0.17]
[1718929661859,0.6246599,133.91,133.87,20.0]
[1718929662041,0.6246599,133.91,133.89,5.9749]
[1718929662239,0.6246599,133.91,133.9,20.17]
[1718929662444,0.6246599,133.91,133.9,20.51]
[1718929663554,0.6246599,133.91,133.9,0.51]
[1718929663758,0.6246599,133.91,133.9,6.4846]
[1718929664058,0.6246599,133.91,133.9,26.4846]
[1718929664970,0.6246599,133.91,133.9,26.9525]
[1718929665143,0.6246599,133.91,133.9,26.4425]
[1718929666456,0.6246599,133.91,133.9,26.6125]
[1718929666678,0.6246599,133.91,133.9,26.9525]
[1718929668982,0.6246599,133.91,133.9,55.4371]
[1718929669277,0.8388819,133.93,133.9,49.4625]
[1718929669573,0.8388819,133.93,133.92,5.9737]
[1718929669755,0.8388819,133.93,133.92,20.51]
[1718929671140,0.8388819,133.93,133.92,0.51]
[1718929671646,0.8388819,133.93,133.91,20.0]
[1718929672285,0.8388819,133.93,133.85,5.9768]
[1718929672479,0.8388819,133.93,133.87,5.9757]
[1718929672667,0.8388819,133.93,133.88,15.2797]
[1718929673748,0.8388819,133.93,133.89,20.51]
[1718929674548,0.8388819,133.93,133.9,28.4844]
[1718929674849,0.8388819,133.93,133.91,20.51]
[1718929675050,0.8388819,133.93,133.92,0.17]
[1718929675280,0.8388819,133.93,133.92,0.34]
[1718929675573,0.8388819,133.93,133.92,0.51]
[1718929677342,0.8388819,133.93,133.89,20.0]
[1718929677967,6.4425,133.92,133.89,20.0]
[1718929678342,6.4425,133.92,133.85,16.118582]
[1718929678548,6.4425,133.92,133.86,20.0]
[1718929680179,6.4425,133.92,133.83,40.0]
[1718929681683,6.4425,133.92,133.84,0.51]
[1718929682994,6.4425,133.92,133.84,0.17]
[1718929683206,6.4425,133.92,133.83,40.0]
[1718929683813,6.4425,133.92,133.83,20.0]
[1718929684613,6.4425,133.92,133.84,0.51]
[1718929685783,6.4425,133.92,133.84,20.0]
[1718929686392,6.4425,133.92,133.8,25.979]
[1718929687209,6.4425,133.92,133.81,0.34]
[1718929687406,6.4425,133.92,133.82,0.17]
[1718929688688,6.4425,133.92,133.83,5.9775]
[1718929688888,6.4425,133.92,133.84,20.51]
[1718929690607,6.4425,133.92,133.84,43.02]
[1718929690791,16.1185819,133.93,133.84,43.02]
[1718929690792,0.8388819,133.93,133.86,28.486]
[1718929691098,0.8388819,133.93,133.87,0.51]
[1718929691305,0.8388819,133.93,133.87,20.51]
[1718929691820,0.8388819,133.93,133.88,16.2425]
[1718929692035,0.8388819,133.93,133.89,43.02]
[1718929692316,0.8388819,133.93,133.89,48.9947]
[1718929692687,0.8388819,133.93,133.9,5.9744]
[1718929692889,0.8388819,133.93,133.91,20.51]
[1718929693788,0.8388819,133.93,133.91,0.51]
[1718929693988,0.8388819,133.93,133.92,20.0]
[1718929694311,0.8388819,133.93,133.92,20.51]
[1718929695203,0.8388819,133.93,133.92,0.51]
[1718929697722,0.8388819,133.93,133.92,6.4837]
[1718929697904,0.8388819,133.93,133.92,26.4837]
[1718929698926,0.8388819,133.93,133.92,46.68400808]
[1718929699630,0.8388819,133.93,133.92,57.97142201]
[1718929700235,0.8388819,133.93,133.92,69.19268252]
[1718929700416,0.8388819,133.93,133.92,57.97142201]
[1718929700615,0.8388819,133.93,133.92,69.19235135]
[1718929701302,0.8388819,133.93,133.92,31.73111847]
[1718929701498,0.8388819,133.93,133.92,20.51]
[1718929701915,0.8388819,133.93,133.92,20.17]
[1718929702627,0.8388819,133.93,133.92,0.17]
[1718929703142,0.8388819,133.93,133.92,28.6537]
[1718929703330,0.8388819,133.93,133.92,48.9937]
[1718929703638,0.8388819,133.93,133.92,26.4837]
[1718929704229,0.8388819,133.93,133.92,48.9937]
[1718929704405,6.4425,134.01,133.92,71.16]
[1718929704610,6.4425,134.05,133.94,22.51]
[1718929704818,6.4425,134.05,133.96,5.9716]
[1718929705032,6.4425,134.05,133.97,0.51]
[1718929705332,6.4425,134.05,133.98,0.34]
[1718929705627,6.4425,134.05,133.99,0.34]
[1718929705803,6.4425,134.05,134.0,0.17]
[1718929706322,7.19891484,134.05,134.0,0.17]
[1718929706706,7.19891484,134.05,133.99,0.51]
[1718929706931,0.75641484,134.04,133.98,20.0]
[1718929707234,0.75641484,134.04,133.97,0.34]
[1718929708217,21.7222,134.01,133.87,27.46396393]
[1718929708538,15.2797,133.97,133.86,5.9761]
[1718929708720,0.75641484,133.96,133.87,5.9757]
[1718929708919,6.4425,133.98,133.91,5.9738]
[1718929709119,6.4425,133.98,133.87,97.79700469]
[1718929709507,6.4425,133.98,133.9,5.9744]
[1718929709714,6.4425,133.98,133.91,0.17]
[1718929709907,6.4425,133.98,133.9,0.17]
[1718929710231,6.4425,133.98,133.92,5.9733]
[1718929710434,6.4425,133.98,133.93,20.17]
[1718929711236,6.4425,133.98,133.94,0.34]
[1718929711547,6.4425,133.98,133.95,0.17]
[1718929713130,15.2797,134.0,133.95,0.17]
[1718929713331,15.2797,134.0,133.95,20.17]
[1718929713638,6.4425,134.02,133.96,0.34]
[1718929713839,6.4425,134.02,133.97,0.17]
[1718929714145,0.75641484,134.01,133.96,20.0]
[1718929714641,0.75641484,134.01,133.9,5.9745]
[1718929714844,0.75641484,134.01,133.91,35.2797]
[1718929715438,15.2797,134.0,133.91,35.2797]
[1718929715612,0.75641484,133.99,133.92,0.51]
[1718929716538,16.03611484,134.0,133.92,0.51]
[1718929716737,0.75641484,133.99,133.92,0.51]
[1718929718430,6.4425,133.98,133.92,0.51]
[1718929718929,6.4425,133.98,133.92,0.17]
[1718929720133,6.4425,133.98,133.92,0.51]
[1718929722452,0.75641484,133.97,133.91,20.0]
[1718929723852,0.75641484,133.97,133.92,0.34]
[1718929726168,6.4425,133.98,133.92,0.34]
[1718929726333,6.4425,133.98,133.93,0.17]
[1718929726538,6.4425,133.98,133.93,20.17]
[1718929726745,6.4425,133.98,133.94,0.34]
[1718929727037,6.4425,133.98,133.95,0.17]
[1718929729144,15.2797,134.0,133.95,0.17]
[1718929729461,6.4425,134.02,133.95,42.68]
[1718929729645,6.4425,134.02,133.96,0.34]
[1718929730048,6.4425,134.02,133.97,0.17]
[1718929730559,0.75641484,134.01,133.96,0.34]
[1718929731551,0.75641484,134.01,133.94,20.0]
[1718929731857,15.2797,134.0,133.9,15.2797]
[1718929732051,0.75641484,133.99,133.9,15.2797]
[1718929732254,0.75641484,133.99,133.9,21.2541]
[1718929732841,0.75641484,133.99,133.91,0.17]
[1718929733256,15.2797,134.0,133.91,26.144]
[1718929733466,0.75641484,133.99,133.91,20.17]
[1718929733651,0.75641484,133.99,133.91,26.1438]
[1718929733869,0.75641484,133.99,133.91,20.17]
[1718929734343,16.03611484,134.0,133.92,0.17]
[1718929734542,15.2797,134.0,133.92,0.34]
[1718929734761,15.2797,134.0,133.93,0.17]
[1718929734960,15.2797,134.0,133.93,0.34]
[1718929735162,0.75641484,133.99,133.94,0.17]
[1718929735373,15.2797,134.0,133.94,0.17]
[1718929736147,0.75641484,133.99,133.94,0.17]
[1718929736375,0.75641484,133.99,133.94,20.17]
[1718929736546,16.03611484,134.0,133.95,0.34]
[1718929736869,15.2797,134.0,133.95,20.34]
[1718929737240,15.2797,134.0,133.95,0.34]
[1718929737869,15.2797,134.0,133.96,0.17]
[1718929742451,0.75641484,133.99,133.93,20.0]
[1718929742651,6.4425,133.98,133.91,20.0]
[1718929742974,0.75641484,133.97,133.91,20.0]
[1718929744267,28.89641484,133.97,133.91,20.0]
[1718929744473,28.89641484,133.97,133.88,20.0]
[1718929745166,28.14,133.94,133.88,40.0]
[1718929745368,0.75641484,133.93,133.88,20.0]
[1718929745548,0.75641484,133.93,133.84,20.0]
[1718929745744,15.2797,133.92,133.82,42.221]
[1718929745949,6.4425,133.9,133.82,42.221]
[1718929746168,0.75641484,133.89,133.82,20.0]
[1718929746483,0.75641484,133.89,133.81,15.2797]
[1718929746769,0.75641484,133.89,133.82,20.0]
[1718929747252,0.75641484,133.89,133.83,0.51]
[1718929748070,0.75641484,133.89,133.83,0.34]
[1718929753758,6.4425,133.88,133.82,20.0]
[1718929753965,6.4425,133.88,133.75,5.9812]
[1718929753966,0.75641484,133.87,133.75,5.9812]
[1718929754161,0.75641484,133.87,133.73,42.21635119]
[1718929754476,6.4425,133.86,133.76,20.0]
[1718929754778,0.75641484,133.85,133.76,20.0]
[1718929755345,0.75641484,133.85,133.77,20.0]
[1718929755562,0.75641484,133.85,133.78,0.17]
[1718929756866,0.75641484,133.85,133.78,0.51]
[1718929757271,0.75641484,133.85,133.78,0.17]
[1718929757471,0.75641484,133.85,133.74,20.0]
[1718929758456,15.2797,133.84,133.74,20.0]
[1718929758663,0.75641484,133.83,133.75,15.4497]
[1718929758980,0.75641484,133.83,133.76,20.17]
[1718929759177,0.75641484,133.83,133.77,0.34]
[1718929759379,0.75641484,133.83,133.77,0.17]
[1718929759982,0.75641484,133.83,133.76,20.17]
[1718929759983,6.4425,133.82,133.76,20.0]
[1718929760277,0.75641484,133.81,133.76,20.0]
[1718929760480,0.75641484,133.81,133.72,35.2797]
[1718929761363,0.75641484,133.81,133.73,0.17]
[1718929761556,0.75641484,133.81,133.73,0.51]
[1718929763775,15.2797,133.8,133.72,35.2797]
[1718929763957,0.75641484,133.79,133.72,20.0]
[1718929764157,0.75641484,133.79,133.7,20.0]
[1718929764366,0.75641484,133.79,133.71,15.2797]
[1718929764658,0.75641484,133.79,133.72,20.0]
[1718929765957,15.2797,133.8,133.73,0.51]
[1718929766687,15.2797,133.8,133.74,5.9815]
[1718929766854,15.2797,133.8,133.75,22.00630322]
[1718929767061,15.2797,133.8,133.75,20.51]
[1718929767463,15.2797,133.8,133.76,20.0]
[1718929767667,15.2797,133.8,133.75,0.51]
[1718929768163,0.75641484,133.79,133.73,20.0]
[1718929768475,0.75641484,133.79,133.72,20.0]
[1718929768982,6.4425,133.78,133.68,20.0]
[1718929769152,0.75641484,133.77,133.69,21.2633]
[1718929769358,0.75641484,133.77,133.7,20.0]
[1718929769776,7.19891484,133.78,133.7,20.0]
[1718929770077,6.4425,133.78,133.71,0.17]
[1718929770286,6.4425,133.78,133.71,6.323]
[1718929770463,6.4425,133.78,133.72,20.17]
[1718929770765,6.4425,133.78,133.73,0.34]
[1718929770965,6.4425,133.78,133.74,0.17]
[1718929773077,15.2797,133.8,133.74,0.17]
[1718929773872,15.2797,133.8,133.74,20.17]
[1718929774073,15.2797,133.8,133.75,0.34]
[1718929774273,15.2797,133.8,133.76,0.17]
[1718929775879,0.75641484,133.79,133.75,0.34]
[1718929776072,0.75641484,133.79,133.74,0.34]
[1718929777079,15.2797,133.8,133.74,0.34]
[1718929777280,15.2797,133.8,133.75,0.17]
[1718929779093,0.75641484,133.79,133.73,20.0]
[1718929779293,0.75641484,133.79,133.7,25.9832]
[1718929779791,0.75641484,133.79,133.71,5.983]
[1718929779996,0.75641484,133.79,133.72,20.0]
[1718929780188,0.75641484,133.79,133.7,25.9834]
[1718929780382,0.75641484,133.79,133.71,0.51]
[1718929780582,0.75641484,133.79,133.7,20.0]
[1718929781978,0.75641484,133.79,133.71,0.34]
[1718929783106,6.4425,133.78,133.71,0.17]
[1718929783306,28.99641484,133.77,133.71,0.17]
[1718929783597,0.75641484,133.76,133.7,20.0]
[1718929783797,15.2797,133.76,133.7,20.0]
[1718929783978,0.75641484,133.75,133.67,20.0]
[1718929784183,0.75641484,133.75,133.67,35.2797]
[1718929785076,0.75641484,133.75,133.68,0.51]
[1718929785981,15.2797,133.76,133.69,5.9839]
[1718929786183,15.2797,133.76,133.7,20.51]
[1718929786704,0.75641484,133.75,133.7,0.51]
[1718929786902,0.75641484,133.75,133.68,20.0]
[1718929787106,6.4425,133.74,133.68,20.0]
[1718929787415,0.75641484,133.73,133.64,20.0]
[1718929787698,0.75641484,133.73,133.65,25.9855]
[1718929787880,0.75641484,133.73,133.66,20.0]
[1718929788500,0.75641484,133.73,133.67,0.51]
[1718929788991,7.19891484,133.74,133.67,0.51]
[1718929789195,0.75641484,133.73,133.67,0.51]
[1718929789697,0.75641484,133.73,133.67,20.51]
[1718929790085,7.19891484,133.74,133.67,20.51]
[1718929790289,6.4425,133.74,133.67,0.51]
[1718929790481,6.4425,133.74,133.68,20.0]
[1718929790684,6.4425,133.74,133.69,0.51]
[1718929790884,6.4425,133.74,133.69,0.17]
[1718929791404,6.4425,133.74,133.69,0.34]
[1718929791598,6.4425,133.74,133.7,0.17]
[1718929793689,0.75641484,133.73,133.69,0.17]
[1718929793885,0.75641484,133.73,133.68,0.34]
[1718929794205,0.75641484,133.73,133.69,0.17]
[1718929795187,0.75641484,133.73,133.68,0.17]
[1718929795385,0.75641484,133.73,133.67,0.51]
[1718929796310,15.2797,133.72,133.67,0.51]
[1718929796628,0.75641484,133.71,133.67,0.51]
[1718929797301,15.2797,133.72,133.67,0.51]
[1718929797509,0.75641484,133.71,133.67,0.51]
[1718929798382,15.2797,133.72,133.67,0.51]
[1718929802822,0.75641484,133.71,133.65,20.0]
[1718929803021,15.2797,133.72,133.65,20.0]
[1718929803022,6.4425,133.74,133.65,20.0]
[1718929803211,6.4425,133.74,133.64,42.45197654]
[1718929803420,6.4425,133.74,133.67,5.9845]
[1718929803604,6.4425,133.74,133.68,25.9844]
[1718929804110,6.4425,133.74,133.69,0.17]
[1718929804311,6.4425,133.74,133.69,0.51]
[1718929804812,6.4425,133.74,133.69,0.34]
[1718929805015,6.4425,133.74,133.68,0.34]
[1718929805731,15.2797,133.76,133.68,0.34]
[1718929806227,16.03611484,133.76,133.69,0.17]
[1718929807213,15.2797,133.76,133.69,6.1539]
[1718929807414,6.4425,133.77,133.7,20.34]
[1718929807595,6.4425,133.81,133.71,22.68]
[1718929807796,15.2797,133.83,133.75,5.9809]
[1718929807999,15.2797,133.83,133.76,20.51]
[1718929808194,0.75641484,133.82,133.76,20.51]
[1718929808414,15.2797,133.83,133.76,20.51]
[1718929808696,15.2797,133.83,133.76,0.51]
[1718929808901,16.03611484,133.83,133.76,20.51]
[1718929809507,16.03611484,133.83,133.77,20.0]
[1718929809718,16.03611484,133.83,133.76,0.51]
[1718929809719,15.2797,133.83,133.78,0.51]
[1718929809920,15.2797,133.83,133.79,0.17]
[1718929810309,15.2797,133.83,133.78,0.17]
[1718929810504,15.2797,133.83,133.77,0.17]
[1718929810711,6.4425,133.84,133.77,0.17]
[1718929810911,6.4425,133.84,133.77,20.17]
[1718929811110,6.4425,133.84,133.78,0.34]
[1718929811303,6.4425,133.84,133.79,0.17]
[1718929811504,15.2797,133.86,133.79,0.17]
[1718929811841,15.2797,133.86,133.79,20.17]
[1718929812118,15.2797,133.86,133.8,0.34]
[1718929812312,15.2797,133.86,133.81,0.17]
[1718929813932,0.75641484,133.85,133.81,0.17]
[1718929814129,0.75641484,133.85,133.77,20.0]
[1718929814436,0.75641484,133.85,133.73,20.0]
[1718929814636,0.75641484,133.85,133.73,25.982]
[1718929814924,0.75641484,133.85,133.74,5.9817]
[1718929815110,0.75641484,133.85,133.75,20.0]
[1718929815426,6.4425,133.84,133.75,20.0]
[1718929815619,0.75641484,133.83,133.75,20.0]
[1718929815820,0.75641484,133.83,133.73,25.982]
[1718929816205,7.19891484,133.84,133.75,5.9813]
[1718929816421,6.4425,133.84,133.76,20.0]
[1718929816610,0.75641484,133.83,133.77,0.17]
[1718929816812,0.75641484,133.83,133.77,0.51]
[1718929820334,15.2797,133.82,133.74,20.0]
[1718929820509,0.75641484,133.81,133.73,20.0]
[1718929820912,6.4425,133.8,133.73,20.0]
[1718929821122,15.2797,133.78,133.69,20.0]
[1718929821441,0.75641484,133.77,133.67,20.0]
[1718929823664,0.75641484,133.77,133.68,5.984]
[1718929823946,15.2797,133.78,133.69,20.0]
[1718929824247,6.4425,133.8,133.69,67.28720469]
[1718929824452,15.2797,133.81,133.73,5.9819]
[1718929824631,6.4425,133.83,133.74,26.3216]
[1718929824831,0.75641484,133.82,133.75,0.17]
[1718929825338,0.75641484,133.82,133.75,20.17]
[1718929825539,0.75641484,133.82,133.76,0.34]
[1718929825843,0.75641484,133.82,133.77,0.51]
[1718929826048,0.75641484,133.82,133.78,0.17]
[1718929826249,0.75641484,133.82,133.77,0.17]
[1718929826541,0.75641484,133.82,133.75,0.17]
[1718929827451,15.2797,133.81,133.75,0.17]
[1718929827664,0.75641484,133.8,133.75,0.17]
[1718929828254,0.75641484,133.8,133.69,25.9835]
[1718929828421,6.4425,133.79,133.69,20.0]
[1718929828628,0.75641484,133.78,133.68,20.0]
[1718929828850,0.75641484,133.78,133.67,16.2425]
[1718929829353,15.2797,133.77,133.66,15.2797]
[1718929829655,0.75641484,133.76,133.66,15.2797]
[1718929830346,0.75641484,133.76,133.67,5.9847]
[1718929830751,0.75641484,133.76,133.66,15.2797]
[1718929830946,6.4425,133.75,133.66,15.2797]
[1718929831248,6.4425,133.75,133.67,20.0]
[1718929831249,0.75641484,133.74,133.67,20.0]
[1718929831446,0.75641484,133.74,133.65,20.0]
[1718929831650,0.75641484,133.74,133.65,35.2797]
[1718929832154,21.7222,133.73,133.65,20.0]
[1718929832352,0.75641484,133.72,133.61,20.0]
[1718929832547,6.4425,133.71,133.62,15.2797]
[1718929832862,0.75641484,133.7,133.63,20.0]
[1718929833461,0.75641484,133.7,133.59,0.8388819]
[1718929833643,0.75641484,133.7,133.61,15.2797]
[1718929833954,0.75641484,133.7,133.62,20.17]
[1718929834332,0.75641484,133.7,133.62,0.17]
[1718929835631,0.75641484,133.7,133.62,0.51]
[1718929847966,0.75641484,133.7,133.62,6.4971]
[1718929848155,0.75641484,133.7,133.62,0.51]
[1718929851357,15.2797,133.69,133.61,20.0]
[1718929851571,0.75641484,133.68,133.61,20.0]
[1718929852471,0.75641484,133.68,133.62,0.17]
[1718929852675,0.75641484,133.68,133.62,0.51]
[1718929854748,15.2797,133.69,133.62,0.51]
[1718929855254,15.2797,133.69,133.62,6.4971]
[1718929855563,15.2797,133.69,133.63,20.0]
[1718929855765,15.2797,133.69,133.64,0.51]
[1718929858552,15.2797,133.69,133.64,20.51]
[1718929860365,15.2797,133.74,133.64,43.02]
[1718929860666,21.7222,133.78,133.69,5.9838]
[1718929860874,21.7222,133.78,133.65,33.76750779]
[1718929860875,0.75641484,133.77,133.7,20.51]
[1718929861368,0.75641484,133.77,133.7,0.51]
[1718929861963,21.7222,133.76,133.64,20.0]
[1718929862170,0.75641484,133.75,133.64,20.0]
[1718929863152,0.75641484,133.75,133.65,0.17]
[1718929863353,0.75641484,133.75,133.65,0.51]
[1718929863657,0.75641484,133.75,133.67,5.9848]
[1718929863858,0.75641484,133.75,133.68,20.51]
[1718929864204,21.7222,133.76,133.69,6.3239]
[1718929864352,21.7222,133.81,133.7,36.4125]
[1718929864554,0.75641484,133.8,133.71,0.34]
[1718929864767,0.75641484,133.8,133.72,0.17]
[1718929866770,6.4425,133.79,133.68,20.0]
[1718929866970,15.2797,133.77,133.66,20.0]
[1718929867174,6.4425,133.75,133.65,20.0]
[1718929867354,0.75641484,133.74,133.65,20.0]
[1718929868176,0.75641484,133.74,133.64,20.0]
[1718929868354,15.2797,133.73,133.64,20.0]
[1718929868554,6.4425,133.71,133.64,20.0]
[1718929868755,0.75641484,133.7,133.64,20.0]
[1718929868954,0.75641484,133.7,133.6,20.0]
[1718929869269,0.75641484,133.7,133.61,15.2797]
[1718929869468,0.75641484,133.7,133.62,20.0]
[1718929869875,0.75641484,133.7,133.63,0.17]
[1718929870083,0.75641484,133.7,133.63,0.51]
[1718929870578,0.75641484,133.7,133.62,20.0]
[1718929870757,0.75641484,133.7,133.59,0.8388819]
[1718929870957,0.75641484,133.7,133.59,16.1185819]
[1718929871175,0.75641484,133.7,133.6,20.0]
[1718929871756,0.75641484,133.7,133.6,25.988]
[1718929871957,0.75641484,133.7,133.6,20.0]